bitfinex-derivatives/quotes_SOLF0:USTF0_20260226
["timestamp","ask_amount","ask_price","bid_price","bid_amount"]
[1772084928351,35.27777483,87.848,87.79,2.98734265]
[1772084930048,35.27777483,87.848,87.8,10.2501]
[1772084942061,35.27777483,87.848,87.789,10.2515]
[1772084942961,35.2805563,87.843,87.789,10.2515]
[1772084946263,35.30016352,87.839,87.789,10.2515]
[1772084949965,35.30016352,87.839,87.735,34.17]
[1772084949966,35.29252308,87.829,87.765,21.21237314]
[1772084950169,35.29252308,87.809,87.76,21.21237314]
[1772084950463,35.29252308,87.809,87.758,21.21237314]
[1772084950665,35.29252308,87.809,87.76,10.2549]
[1772084953562,35.29252308,87.809,87.76,13.24224265]
[1772084953961,35.29252308,87.809,87.768,10.2538]
[1772084954770,35.29252308,87.809,87.777,10.2528]
[1772084956666,35.29252308,87.809,87.766,10.2541]
[1772084961873,35.29252308,87.809,87.775,10.2531]
[1772084963581,35.29252308,87.809,87.766,10.2541]
[1772084965784,35.23459746,87.799,87.757,10.2552]
[1772084966782,35.23459746,87.799,87.75,2.98734265]
[1772084966783,35.23459746,87.799,87.766,10.2542]
[1772084967778,35.23665535,87.819,87.766,10.2542]
[1772084974785,35.23665535,87.819,87.774,10.2532]
[1772084975488,13.83086261,87.869,87.765,10.2542]
[1772084975489,35.24745088,87.809,87.765,10.2542]
[1772084976079,35.24745088,87.809,87.773,10.2533]
[1772084979785,35.24745088,87.809,87.741,21.21237314]
[1772084979993,30.12989336,87.789,87.73,2.9883187]
[1772084980290,30.12989336,87.789,87.74,2.9883187]
[1772084980891,30.12989336,87.789,87.749,10.2561]
[1772084989299,30.12989336,87.789,87.738,10.2574]
[1772084991689,30.12989336,87.789,87.726,273.10529951]
[1772084991690,30.12989336,87.789,87.74,2.9883187]
[1772084991891,30.12989336,87.789,87.75,2.9883187]
[1772084992893,30.12989336,87.789,87.753,10.2557]
[1772084996102,30.16533032,87.803,87.76,2.9883187]
[1772084997003,30.16533032,87.803,87.773,10.2534]
[1772084997699,30.16533032,87.803,87.763,10.2544]
[1772084999609,30.16533032,87.803,87.772,10.2535]
[1772085002506,2.9883187,87.83,87.76,2.9883187]
[1772085002701,2.9883187,87.83,87.781,10.2524]
[1772085002904,2.9883187,87.84,87.78,2.9883187]
[1772085003103,2.9883187,87.85,87.78,2.9883187]
[1772085003304,2.9883187,87.85,87.79,2.9883187]
[1772085003505,2.9883187,87.85,87.807,10.2493]
[1772085003705,8.21553007,87.865,87.807,10.2493]
[1772085004009,2.9883187,87.87,87.807,10.2493]
[1772085004602,21.45207717,87.859,87.807,10.2493]
[1772085005002,21.45207717,87.849,87.796,10.2507]
[1772085005410,10.48617762,87.874,87.767,21.27523537]
[1772085005411,21.45207717,87.839,87.786,10.2518]
[1772085005611,21.45207717,87.829,87.77,2.9883187]
[1772085005913,21.45207717,87.819,87.76,2.9883187]
[1772085007112,21.42684811,87.809,87.764,10.2543]
[1772085015317,21.42684811,87.809,87.754,10.2555]
[1772085015519,21.42824697,87.799,87.754,10.2555]
[1772085016816,21.423533,87.789,87.743,10.2568]
[1772085017418,21.423533,87.789,87.733,10.258]
[1772085018915,21.42492337,87.779,87.733,10.258]
[1772085019320,21.42492337,87.779,87.723,10.2591]
[1772085019625,21.42492337,87.769,87.71,2.9883187]
[1772085019822,21.42492337,87.769,87.685,28.3669805]
[1772085019823,21.42492337,87.759,87.7,2.9883187]
[1772085020022,21.42492337,87.759,87.711,10.2605]
[1772085023121,21.42492337,87.759,87.721,10.2594]
[1772085025724,21.4030904,87.779,87.74,2.9883187]
[1772085031426,21.4030904,87.779,87.74,2.99060923]
[1772085031628,21.4030904,87.779,87.739,10.2573]
[1772085032322,21.4030904,87.779,87.729,10.2584]
[1772085032827,21.4030904,87.779,87.73,2.99060923]
[1772085034023,21.4030904,87.779,87.734,10.2578]
[1772085039033,21.41317942,87.777,87.723,10.2591]
[1772085039433,21.41317942,87.769,87.723,10.2591]
[1772085039730,21.41317942,87.759,87.713,10.2603]
[1772085040526,21.41317942,87.759,87.703,10.2614]
[1772085041530,21.41317942,87.759,87.711,10.2606]
[1772085042735,21.42605549,87.739,87.68,2.99060923]
[1772085044033,21.42605549,87.739,87.688,10.2633]
[1772085045036,21.42609727,87.729,87.678,10.2645]
[1772085045433,21.42609727,87.719,87.67,2.99060923]
[1772085046735,21.42609727,87.719,87.677,10.2646]
[1772085047040,21.42609727,87.719,87.68,2.99060923]
[1772085048143,21.42609727,87.719,87.683,10.2639]
[1772085048536,21.42609727,87.719,87.673,10.265]
[1772085050845,2.99060923,87.72,87.617,20.5431]
[1772085050846,21.40175785,87.709,87.65,2.99060923]
[1772085051839,2.99060923,87.7,87.65,2.99060923]
[1772085052042,21.40102993,87.699,87.65,10.2677]
[1772085055753,21.40102993,87.699,87.66,2.99060923]
[1772085056350,2.99060923,87.72,87.67,2.99060923]
[1772085056651,2.99060923,87.73,87.68,2.99060923]
[1772085057048,2.99060923,87.73,87.67,13.25600923]
[1772085058348,8.16498707,87.78,87.68,2.99060923]
[1772085058349,2.99060923,87.74,87.68,2.99060923]
[1772085058548,12.53124772,87.739,87.7,2.99060923]
[1772085060256,12.53124772,87.739,87.68,13.25480923]
[1772085060455,12.49867494,87.729,87.68,13.25480923]
[1772085062759,12.53296011,87.719,87.628,21.27523537]
[1772085062949,12.53296011,87.719,87.66,2.99060923]
[1772085063657,12.53296011,87.719,87.67,2.99060923]
[1772085064852,12.53296011,87.719,87.672,10.2651]
[1772085065454,12.53296011,87.719,87.682,10.2639]
[1772085065663,2.99060923,87.73,87.682,10.2639]
[1772085065664,15.53776408,87.73,87.682,10.2639]
[1772085067251,15.53776408,87.73,87.67,2.99060923]
[1772085068260,15.53776408,87.73,87.68,10.2642]
[1772085068461,12.54715485,87.73,87.69,2.99060923]
[1772085069953,12.54715485,87.73,87.695,10.2624]
[1772085070153,12.56575944,87.749,87.695,10.2624]
[1772085071862,12.56575944,87.749,87.701,10.2617]
[1772085072465,12.56575944,87.749,87.71,10.2606]
[1772085073162,12.56575944,87.749,87.7,13.25240923]
[1772085077963,12.56575944,87.749,87.7,10.2618]
[1772085081273,12.56575944,87.749,87.7,13.25240923]
[1772085082573,12.56575944,87.749,87.669,21.27523537]
[1772085082574,12.56575944,87.749,87.716,10.2599]
[1772085082772,12.55767602,87.762,87.72,2.99060923]
[1772085083268,12.55767602,87.779,87.73,2.99060923]
[1772085083866,12.55767602,87.779,87.723,10.2591]
[1772085084670,12.55517126,87.769,87.723,10.2591]
[1772085089572,12.55517126,87.769,87.733,10.258]
[1772085103289,12.55517126,87.769,87.72,2.99135107]
[1772085103488,12.57864684,87.78,87.742,10.2569]
[1772085104097,15.56999791,87.78,87.731,10.2582]
[1772085104595,1.98306418,87.818,87.722,10.2593]
[1772085104596,12.58109859,87.769,87.722,10.2593]
[1772085108206,12.59402627,87.759,87.713,10.2604]
[1772085123615,12.59402627,87.759,87.721,10.2593]
[1772085125516,12.59254591,87.749,87.695,21.27523537]
[1772085125718,12.59254591,87.749,87.648,20.5358]
[1772085125719,12.59254591,87.739,87.678,21.31795095]
[1772085125915,12.59254591,87.729,87.673,21.31795095]
[1772085126120,12.59254591,87.729,87.68,10.2642]
[1772085129818,12.59254591,87.729,87.69,10.263]
[1772085131228,12.59254591,87.729,87.649,21.31795095]
[1772085131428,5.96619441,87.709,87.66,2.99135107]
[1772085132018,5.96619441,87.709,87.65,2.99135107]
[1772085132220,2.99135107,87.71,87.592,20.5491]
[1772085132221,5.96610322,87.699,87.64,2.99135107]
[1772085132526,5.96610322,87.699,87.645,10.2682]
[1772085133024,5.96610322,87.699,87.592,20.5491]
[1772085133025,5.96610322,87.679,87.62,2.99135107]
[1772085133225,5.13053547,87.711,87.61,21.31795095]
[1772085133226,5.96610322,87.669,87.612,10.2721]
[1772085133425,5.96610322,87.669,87.62,2.99135107]
[1772085135030,5.96610322,87.669,87.621,10.2711]
[1772085135330,5.96610322,87.669,87.595,1.98551374]
[1772085135624,5.96610322,87.669,87.62,2.99135107]
[1772085137125,5.96610322,87.669,87.63,2.99135107]
[1772085137930,5.96610322,87.669,87.633,10.2697]
[1772085139030,5.96610322,87.669,87.64,2.99135107]
[1772085139330,5.99292454,87.701,87.65,2.99135107]
[1772085139528,5.99292454,87.701,87.66,2.99135107]
[1772085139828,5.99292454,87.701,87.66,13.25785107]
[1772085141226,6.00062298,87.76,87.69,2.99135107]
[1772085141426,8.99197405,87.78,87.72,2.99135107]
[1772085141627,8.99197405,87.78,87.679,159.667]
[1772085141628,6.00062298,87.78,87.74,2.99135107]
[1772085142931,6.01094861,87.779,87.72,2.99135107]
[1772085143730,6.01094861,87.779,87.722,10.2593]
[1772085143929,6.01094861,87.779,87.73,2.99135107]
[1772085148023,5.89063447,87.739,87.67,10.2653]
[1772085148223,5.89063447,87.729,87.67,10.2653]
[1772085148428,159.4667,87.79,87.66,2.99135107]
[1772085148429,5.89063447,87.719,87.66,2.99135107]
[1772085148924,5.89063447,87.719,87.615,20.5436]
[1772085149130,5.89063447,87.689,87.631,10.2699]
[1772085149525,5.89063447,87.679,87.62,2.99135107]
[1772085149924,5.98314058,87.669,87.61,13.26365107]
[1772085150528,5.98314058,87.659,87.61,10.2723]
[1772085150827,5.98314058,87.659,87.61,13.26365107]
[1772085151231,5.98314058,87.659,87.61,10.2723]
[1772085152433,6.00809971,87.675,87.61,10.2723]
[1772085154731,5.98918677,87.69,87.621,10.2711]
[1772085154930,5.98918677,87.69,87.6,8.03097225]
[1772085155435,5.98918677,87.69,87.631,10.2699]
[1772085161240,5.98918677,87.69,87.642,10.2686]
[1772085166638,5.98918677,87.69,87.62,8.03097225]
[1772085166639,5.98918677,87.69,87.632,10.2698]
[1772085168241,5.98918677,87.69,87.643,10.2686]
[1772085177651,5.98918677,87.69,87.652,10.2675]
[1772085180655,5.98918677,87.69,87.64,2.99675331]
[1772085181350,8.98594008,87.69,87.599,20.5473]
[1772085181553,8.17295173,87.748,87.583,278.8185386]
[1772085181554,5.9528272,87.669,87.62,2.99675331]
[1772085182952,5.9528272,87.669,87.622,10.271]
[1772085184057,5.9528272,87.669,87.61,13.26915331]
[1772085185151,5.9528272,87.669,87.618,10.2714]
[1772085185355,5.9528272,87.669,87.62,2.99675331]
[1772085186056,5.9528272,87.669,87.583,278.8185386]
[1772085186057,5.96688457,87.679,87.63,2.99675331]
[1772085186454,5.96688457,87.679,87.631,10.2699]
[1772085187956,5.96688457,87.679,87.643,10.2686]
[1772085188860,5.94668445,87.697,87.651,10.2676]
[1772085194271,5.94668445,87.697,87.661,10.2664]
[1772085198971,5.94668445,87.697,87.652,10.2675]
[1772085204279,5.94668445,87.697,87.661,10.2664]
[1772085209781,5.94668445,87.697,87.652,10.2675]
[1772085215893,2.99649109,87.71,87.662,10.2663]
[1772085216194,5.96747607,87.722,87.66,2.99649109]
[1772085216988,5.96747607,87.722,87.669,10.2655]
[1772085218590,5.96356009,87.719,87.669,10.2655]
[1772085222307,5.96356009,87.719,87.621,34.17]
[1772085222308,5.96669915,87.689,87.636,21.1173384]
[1772085222609,5.96669915,87.689,87.64,2.99649109]
[1772085224004,5.96669915,87.689,87.652,10.2674]
[1772085232713,5.95211233,87.679,87.632,21.1173384]
[1772085232918,5.95211233,87.679,87.63,2.99649109]
[1772085233212,5.95211233,87.669,87.633,10.2696]
[1772085240718,2.99649109,87.7,87.651,1.83917177]
[1772085241326,2.99649109,87.71,87.66,2.99649109]
[1772085241531,2.99649109,87.71,87.661,1.83917177]
[1772085242128,2.99649109,87.71,87.664,10.2661]
[1772085242321,2.99649109,87.72,87.66,2.99649109]
[1772085242524,2.99649109,87.7,87.653,1.91929063]
[1772085242831,3.70439664,87.699,87.653,12.18659063]
[1772085244132,3.70439664,87.679,87.628,1.88393665]
[1772085244525,3.70439664,87.679,87.631,10.2699]
[1772085247025,3.70439664,87.669,87.631,10.2699]
[1772085251135,3.70439664,87.669,87.632,1.93182729]
[1772085251735,3.70439664,87.669,87.633,12.20152729]
[1772085251936,3.70439664,87.68,87.634,1.93182729]
[1772085252935,3.70439664,87.68,87.635,12.20169413]
[1772085253238,3.70439664,87.68,87.636,1.93229413]
[1772085253435,3.70439664,87.68,87.64,10.2689]
[1772085253647,2.99649109,87.69,87.641,1.93229413]
[1772085254239,3.70439664,87.689,87.641,1.93229413]
[1772085257941,3.70439664,87.689,87.643,10.2685]
[1772085258137,3.70439664,87.689,87.644,1.9278966]
[1772085258337,10.43803056,87.726,87.593,20.5487]
[1772085258338,3.70439664,87.709,87.651,1.9278966]
[1772085259635,3.70439664,87.709,87.655,1.9278966]
[1772085261058,3.70439664,87.708,87.655,1.9278966]
[1772085261243,3.70439664,87.689,87.645,1.93728673]
[1772085261836,3.70439664,87.689,87.643,10.2685]
[1772085262839,3.70439664,87.679,87.621,1.93734627]
[1772085263038,3.70439664,87.669,87.621,1.93734627]
[1772085263940,3.70439664,87.669,87.625,12.2030469]
[1772085264137,3.70439664,87.669,87.626,1.9323469]
[1772085265549,2.99649109,87.68,87.631,1.9323469]
[1772085266245,3.70439664,87.682,87.631,1.9323469]
[1772085266943,3.70439664,87.682,87.635,10.2695]
[1772085267144,3.70439664,87.682,87.635,12.25827454]
[1772085267346,3.70439664,87.682,87.636,1.98877454]
[1772085267649,2.99649109,87.68,87.638,10.2691]
[1772085268251,3.85080068,87.679,87.638,10.2691]
[1772085272552,3.85080068,87.679,87.638,12.28374123]
[1772085275750,10.263,87.691,87.62,2.99787936]
[1772085275751,3.56116087,87.689,87.641,2.01643226]
[1772085276852,3.56116087,87.689,87.642,10.2686]
[1772085277060,3.56116087,87.689,87.643,2.01791544]
[1772085280255,3.56116087,87.685,87.643,2.01791544]
[1772085280456,3.56116087,87.679,87.63,2.03617013]
[1772085281052,3.56116087,87.669,87.624,10.2707]
[1772085283249,3.56116087,87.669,87.625,2.03940976]
[1772085294474,3.56116087,87.669,87.627,2.07660654]
[1772085295366,3.56116087,87.669,87.628,12.34690654]
[1772085296279,3.56116087,87.669,87.628,2.07660654]
[1772085296678,3.56116087,87.669,87.617,2.06789572]
[1772085296977,10.43803056,87.699,87.608,10.2726]
[1772085296978,3.72808509,87.659,87.608,10.2726]
[1772085297376,3.72808509,87.659,87.608,12.34049572]
[1772085297584,3.72808509,87.659,87.609,2.06789572]
[1772085297979,3.72808509,87.658,87.609,2.06789572]
[1772085298382,3.72808509,87.669,87.621,2.07411342]
[1772085299381,3.72808509,87.669,87.622,2.07411342]
[1772085300685,3.72808509,87.686,87.631,2.11186086]
[1772085302084,3.72808509,87.709,87.651,2.10817044]
[1772085302686,3.72808509,87.707,87.661,2.10817044]
[1772085302889,3.72808509,87.707,87.67,2.99787936]
[1772085303083,10.6459346,87.73,87.671,2.10817044]
[1772085303084,3.72808509,87.719,87.671,2.10817044]
[1772085303283,3.72808509,87.719,87.674,2.10817044]
[1772085303889,10.2574,87.739,87.681,2.10817044]
[1772085304091,3.72808509,87.738,87.681,2.10817044]
[1772085305195,3.72808509,87.738,87.635,28.41258328]
[1772085305196,3.72808509,87.738,87.691,2.11074969]
[1772085308188,3.72808509,87.719,87.671,2.10019767]
[1772085309993,3.72808509,87.732,87.682,2.10019767]
[1772085310893,3.72808509,87.732,87.687,10.2633]
[1772085311099,3.72808509,87.732,87.688,2.11403132]
[1772085314198,3.72808509,87.732,87.69,2.19961446]
[1772085316497,2.99787936,87.73,87.69,2.19961446]
[1772085320907,6.72596445,87.73,87.69,2.19961446]
[1772085322005,3.72808509,87.729,87.69,2.19961446]
[1772085324801,2.99787936,87.74,87.69,2.19961446]
[1772085325005,159.3744,87.841,87.709,2.18221123]
[1772085325006,3.72808509,87.759,87.709,2.18221123]
[1772085325195,3.72808509,87.759,87.711,2.18221123]
[1772085325398,3.72808509,87.759,87.71,2.99787936]
[1772085325399,3.72808509,87.759,87.721,12.44151123]
[1772085325608,3.72808509,87.759,87.722,2.18221123]
[1772085326202,2.99787936,87.75,87.711,1.73030577]
[1772085326401,3.74012028,87.739,87.691,1.73030577]
[1772085326602,173.55540407,87.823,87.691,1.73030577]
[1772085326603,3.74012028,87.729,87.691,1.73030577]
[1772085327307,3.74012028,87.729,87.693,10.2627]
[1772085329902,2.99787936,87.73,87.67,2.99787936]
[1772085329903,2.99787936,87.73,87.697,10.2622]
[1772085330108,2.99787936,87.73,87.698,1.77955412]
[1772085330511,2.99787936,87.74,87.698,1.77955412]
[1772085330911,2.99787936,87.74,87.7,10.2619]
[1772085335211,2.99359664,87.74,87.7,10.2619]
[1772085336114,3.77726949,87.739,87.7,10.2619]
[1772085336714,3.77726949,87.709,87.659,1.88042228]
[1772085336913,3.77726949,87.699,87.659,1.88042228]
[1772085337314,3.77726949,87.699,87.661,1.88042228]
[1772085337711,6.77086613,87.69,87.648,1.88042228]
[1772085337910,6.77086613,87.69,87.65,10.2677]
[1772085341418,3.77726949,87.69,87.65,10.2677]
[1772085342531,3.77726949,87.69,87.608,28.41258328]
[1772085342532,2.99359664,87.71,87.67,1.63009014]
[1772085342721,3.77726949,87.717,87.67,1.63009014]
[1772085343610,2.99359664,87.71,87.67,1.63009014]
[1772085343813,3.77726949,87.717,87.67,1.63009014]
[1772085344011,3.77726949,87.717,87.671,10.2652]
[1772085344215,3.77726949,87.717,87.672,1.77395304]
[1772085344414,2.99359664,87.71,87.672,1.77395304]
[1772085344915,2.99359664,87.71,87.673,10.265]
[1772085345514,2.99359664,87.71,87.673,12.07509228]
[1772085345714,10.6459346,87.765,87.546,69.55761214]
[1772085345715,3.77726949,87.729,87.681,1.84536536]
[1772085346918,3.77726949,87.729,87.692,10.2627]
[1772085347518,3.77726949,87.729,87.683,1.88404016]
[1772085349818,3.77726949,87.719,87.682,10.264]
[1772085355225,3.77726949,87.719,87.623,34.23]
[1772085355226,6.77086613,87.74,87.695,2.15783655]
[1772085355617,3.77726949,87.739,87.695,2.15783655]
[1772085357627,3.79897381,87.752,87.701,2.26960962]
[1772085359027,3.79897381,87.752,87.707,2.35771959]
[1772085359733,3.79897381,87.752,87.711,2.38789068]
[1772085360932,3.79897381,87.752,87.714,10.2603]
[1772085363129,3.79897381,87.752,87.658,188.11858328]
[1772085363130,3.79897381,87.763,87.721,2.53595105]
[1772085364033,3.79897381,87.775,87.723,2.56429838]
[1772085364934,3.79897381,87.775,87.735,10.2577]
[1772085367029,3.79897381,87.775,87.678,159.6697]
[1772085367030,3.79897381,87.787,87.738,2.57791374]
[1772085367432,3.79897381,87.769,87.713,2.57791374]
[1772085367932,3.79897381,87.759,87.713,2.57791374]
[1772085368929,3.79897381,87.759,87.714,10.2602]
[1772085372035,3.79897381,87.749,87.702,10.2616]
[1772085374332,3.79897381,87.749,87.702,12.93123725]
[1772085375734,3.79897381,87.749,87.705,2.71934126]
[1772085376141,3.79897381,87.749,87.705,2.57036268]
[1772085377035,3.79897381,87.749,87.707,10.261]
[1772085378142,3.79897381,87.749,87.707,12.89831899]
[1772085379043,3.79897381,87.749,87.708,2.6614359]
[1772085388347,4.19836946,87.729,87.678,3.04352143]
[1772085388944,4.19836946,87.719,87.668,10.2656]
[1772085389145,4.19836946,87.719,87.669,3.06515737]
[1772085389536,4.19836946,87.719,87.671,3.06515737]
[1772085390344,4.19836946,87.719,87.674,3.14618639]
[1772085392047,4.19836946,87.719,87.678,10.2644]
[1772085392442,4.19836946,87.719,87.679,3.19616351]
[1772085398662,4.19836946,87.719,87.681,3.33555876]
[1772085399964,4.19836946,87.719,87.684,10.2637]
[1772085401566,8.4929418,87.765,87.711,3.39761199]
[1772085401567,2.994691,87.76,87.711,3.39761199]
[1772085401765,4.22427365,87.759,87.711,3.39761199]
[1772085402962,4.22427365,87.759,87.712,10.2605]
[1772085403164,4.22427365,87.759,87.713,3.4510869]
[1772085404076,4.22427365,87.759,87.715,10.2601]
[1772085404671,4.22427365,87.759,87.72,3.57823205]
[1772085411477,4.22427365,87.759,87.722,3.75380413]
[1772085411771,4.22427365,87.779,87.722,3.75380413]
[1772085412378,4.22427365,87.779,87.731,3.80216672]
[1772085413975,4.22427365,87.779,87.732,3.83433609]
[1772085414979,4.22427365,87.779,87.735,14.10844199]
[1772085415480,4.22427365,87.779,87.736,3.85149479]
[1772085416082,2.994691,87.75,87.703,3.87603925]
[1772085416280,4.68829005,87.739,87.691,3.87603925]
[1772085417077,2.994691,87.75,87.704,3.89093335]
[1772085417274,7.68298105,87.75,87.704,3.89093335]
[1772085417683,4.68829005,87.749,87.704,3.89093335]
[1772085417881,2.994691,87.76,87.706,3.9064905]
[1772085418379,4.68829005,87.759,87.706,3.9064905]
[1772085419885,4.68829005,87.759,87.711,10.2606]
[1772085420078,4.68829005,87.759,87.712,3.82318468]
[1772085420679,4.68829005,87.759,87.714,3.81748137]
[1772085420875,4.68829005,87.772,87.714,3.81748137]
[1772085421179,4.68829005,87.779,87.731,3.81748137]
[1772085424082,4.68829005,87.749,87.688,3.80584165]
[1772085424280,2.994691,87.73,87.688,3.80584165]
[1772085424474,2.994691,87.73,87.69,3.80584165]
[1772085424982,7.68298105,87.73,87.69,3.80584165]
[1772085425185,7.68298105,87.73,87.623,307.54369691]
[1772085425186,7.68298105,87.72,87.671,3.81992716]
[1772085425586,4.68829005,87.719,87.671,3.81992716]
[1772085426385,4.68829005,87.709,87.658,3.68479121]
[1772085428584,2.994691,87.72,87.671,3.74348321]
[1772085428886,4.68829005,87.729,87.671,3.74348321]
[1772085429082,4.68829005,87.729,87.675,3.75676346]
[1772085429587,4.68829005,87.744,87.691,3.75676346]
[1772085430881,4.68829005,87.744,87.696,10.2623]
[1772085431081,4.68829005,87.744,87.697,3.79782571]
[1772085431487,4.68829005,87.739,87.697,3.79782571]
[1772085432184,4.68829005,87.739,87.636,34.23]
[1772085432185,4.68829005,87.719,87.654,3.87781929]
[1772085432385,2.994691,87.7,87.654,3.87781929]
[1772085433678,4.68829005,87.699,87.654,3.87781929]
[1772085437680,2.994691,87.71,87.66,2.994691]
[1772085437884,10.2585,87.73,87.671,3.91240967]
[1772085437885,4.68829005,87.727,87.671,3.91240967]
[1772085441695,2.994691,87.72,87.671,3.91240967]
[1772085441894,2.994691,87.72,87.663,10.2662]
[1772085441895,4.68829005,87.689,87.635,3.95732821]
[1772085442095,2.994691,87.68,87.635,3.95732821]
[1772085442494,7.68298105,87.68,87.635,3.95732821]
[1772085443193,4.68829005,87.679,87.635,3.95732821]
[1772085447398,4.68829005,87.679,87.636,14.49953718]
[1772085447598,4.68829005,87.679,87.637,4.23013718]
[1772085448797,10.62318792,87.745,87.593,1.98524189]
[1772085448798,4.81786533,87.699,87.639,4.24631802]
[1772085449902,4.81786533,87.699,87.641,4.25690797]
[1772085450900,4.81786533,87.699,87.644,4.32184451]
[1772085452894,4.81786533,87.699,87.646,4.34268471]
[1772085454500,4.81786533,87.699,87.648,10.268]
[1772085454706,4.73812154,87.714,87.649,4.38454787]
[1772085456003,4.73812154,87.714,87.64,8.02974426]
[1772085456004,4.73812154,87.714,87.661,4.4036181]
[1772085457809,4.73812154,87.714,87.663,10.2662]
[1772085458405,4.73812154,87.714,87.664,4.46012413]
[1772085458606,4.73812154,87.714,87.667,4.46012413]
[1772085458811,4.73812154,87.714,87.62,55.33044931]
[1772085458812,4.73812154,87.714,87.631,4.46900221]
[1772085459507,4.73812154,87.712,87.659,10.2666]
[1772085459909,4.73812154,87.712,87.66,4.4783307]
[1772085461113,4.73812154,87.712,87.663,4.463671]
[1772085465215,4.73812154,87.712,87.67,2.99514491]
[1772085465508,2.99514491,87.74,87.691,4.5773244]
[1772085465714,2.99514491,87.74,87.637,21.10044931]
[1772085465715,4.73812154,87.766,87.73,2.99514491]
[1772085465919,4.73812154,87.766,87.721,4.58547605]
[1772085466120,4.73812154,87.766,87.73,2.99514491]
[1772085468613,4.73812154,87.779,87.74,2.99514491]
[1772085471727,4.73812154,87.779,87.731,4.70700847]
[1772085472323,4.73812154,87.779,87.73,2.99514491]
[1772085472527,4.73812154,87.779,87.72,2.99514491]
[1772085473027,4.73812154,87.769,87.72,2.99514491]
[1772085474928,4.73812154,87.769,87.721,10.2594]
[1772085475129,4.73812154,87.769,87.722,4.73756516]
[1772085475529,4.73812154,87.783,87.741,4.73756516]
[1772085480330,2.99514491,87.78,87.741,4.73756516]
[1772085480531,4.68175587,87.779,87.731,10.2582]
[1772085480733,4.68175587,87.769,87.714,4.75431058]
[1772085480932,4.68175587,87.759,87.714,4.75431058]
[1772085482032,4.68175587,87.759,87.71,2.99514491]
[1772085482033,4.68175587,87.759,87.716,4.75431058]
[1772085483038,4.68175587,87.759,87.717,10.2599]
[1772085486742,4.68175587,87.759,87.716,4.75431058]
[1772085486942,4.68175587,87.759,87.71,2.99514491]
[1772085487436,4.68175587,87.759,87.707,10.261]
[1772085489438,4.68175587,87.759,87.711,10.2605]
[1772085489638,4.68175587,87.759,87.711,15.01481058]
[1772085490546,4.68175587,87.759,87.715,4.75431058]
[1772085491943,4.68175587,87.759,87.718,15.01401058]
[1772085493645,4.68175587,87.759,87.719,4.75431058]
[1772085496944,4.68175587,87.749,87.708,10.2609]
[1772085497142,4.68175587,87.749,87.709,4.75431058]
[1772085498744,4.68175587,87.749,87.711,10.2606]
[1772085499147,4.68175587,87.749,87.711,4.75431058]
[1772085499343,4.68175587,87.749,87.712,4.75431058]
[1772085508357,2.99514491,87.76,87.712,4.75431058]
[1772085508358,5.15139755,87.759,87.712,4.75431058]
[1772085508858,5.15139755,87.759,87.713,5.16495158]
[1772085509853,5.15139755,87.759,87.715,10.2601]
[1772085512358,5.15139755,87.759,87.716,5.19164929]
[1772085512556,5.15139755,87.759,87.718,5.19164929]
[1772085513960,5.15139755,87.759,87.722,10.2593]
[1772085515759,5.15139755,87.759,87.718,5.19164929]
[1772085515963,5.15139755,87.759,87.701,5.21271886]
[1772085517457,5.15139755,87.759,87.721,15.47211886]
[1772085517862,5.15139755,87.759,87.722,5.21271886]
[1772085518157,5.15139755,87.759,87.724,10.259]
[1772085521960,5.15139755,87.759,87.722,5.21271886]
[1772085522165,5.15139755,87.759,87.714,15.47291886]
[1772085524569,5.15139755,87.759,87.715,5.21271886]
[1772085526269,5.17352452,87.749,87.704,5.21271886]
[1772085526667,5.17352452,87.749,87.704,15.47411886]
[1772085527265,5.17352452,87.749,87.705,5.21271886]
[1772085527465,5.17352452,87.749,87.707,5.21271886]
[1772085528868,5.17352452,87.749,87.708,15.47371886]
[1772085530165,5.17352452,87.749,87.708,5.21271886]
[1772085534273,5.17352452,87.765,87.714,5.21271886]
[1772085535869,5.17352452,87.765,87.725,10.2589]
[1772085536064,5.17352452,87.765,87.725,15.52320304]
[1772085536570,5.29595071,87.749,87.705,5.26847613]
[1772085537971,5.29595071,87.749,87.707,10.261]
[1772085539372,5.29595071,87.749,87.707,15.41238867]
[1772085539773,5.29595071,87.749,87.707,5.15138867]
[1772085546271,5.29595071,87.749,87.693,21.10044931]
[1772085546272,5.29595071,87.769,87.711,5.13904664]
[1772085546479,5.29595071,87.759,87.711,5.13904664]
[1772085547876,5.29595071,87.759,87.712,10.2604]
[1772085548077,5.29595071,87.759,87.713,5.14552364]
[1772085549775,5.29595071,87.749,87.702,15.51052059]
[1772085550379,5.29595071,87.749,87.703,5.25109762]
[1772085556987,5.29595071,87.759,87.711,5.27125004]
[1772085557780,5.29595071,87.759,87.721,5.27423547]
[1772085558781,5.29595071,87.759,87.702,10.2616]
[1772085558782,5.29595071,87.759,87.706,5.2881233]